bitfinex-derivatives/quotes_SOLF0:USTF0_20250221
["timestamp","ask_amount","ask_price","bid_price","bid_amount"]
[1740177122826,0.04132468,168.82,168.78,0.04218133]
[1740177123227,0.04132468,168.82,168.62,191.54626549]
[1740177123228,15.1663268,168.8,168.62,191.54626549]
[1740177123528,0.98672706,168.83,168.62,191.54626549]
[1740177123529,5.9293,168.76,168.65,15.1663268]
[1740177123729,15.1663268,168.83,168.65,15.1663268]
[1740177124034,5.9289,168.77,168.73,5.9298]
[1740177124330,0.04010559,168.77,168.73,5.96917558]
[1740177124631,0.04010559,168.77,168.73,0.03937558]
[1740177125833,0.04010559,168.77,168.62,200.77588301]
[1740177126032,0.04010559,168.77,168.62,215.94220981]
[1740177126033,4.7286847,168.77,168.62,215.94220981]
[1740177126222,3.7418,168.77,168.62,215.94220981]
[1740177126421,5.931,168.71,168.67,5.9319]
[1740177126628,18.9081268,168.77,168.67,5.9319]
[1740177127023,0.04469295,168.74,168.7,0.04100738]
[1740177129026,5.9307,168.71,168.7,0.04100738]
[1740177129235,15.21101975,168.74,168.6,0.0821]
[1740177129534,0.98743022,168.73,168.6,0.0821]
[1740177129835,5.9317,168.69,168.6,0.0821]
[1740177130135,15.1663268,168.74,168.6,0.0821]
[1740177130427,0.04179083,168.66,168.64,5.9329]
[1740177130632,0.98743973,168.73,168.64,5.9329]
[1740177130831,0.0414636,168.67,168.64,5.9329]
[1740177131233,0.0414636,168.67,168.64,8.237e-05]
[1740177133934,5.9325,168.66,168.64,8.237e-05]
[1740177136131,5.9736636,168.67,168.64,8.237e-05]
[1740177136337,0.0414636,168.67,168.64,8.237e-05]
[1740177136738,5.9325,168.66,168.64,8.237e-05]
[1740177136932,0.0414636,168.67,168.64,8.237e-05]
[1740177137238,15.1663268,168.66,168.64,8.237e-05]
[1740177137830,15.1663268,168.66,168.54,74.07257795]
[1740177138030,15.1663268,168.62,168.54,74.07257795]
[1740177138438,5.9346,168.6,168.55,5.9363]
[1740177138737,15.1663268,168.62,168.55,5.9363]
[1740177138940,5.9373,168.53,168.46,5.9392]
[1740177139140,21.1036268,168.53,168.46,5.9392]
[1740177139443,0.04013437,168.51,168.46,5.9395]
[1740177139636,0.04013437,168.51,168.42,0.1226]
[1740177140638,5.97793437,168.51,168.44,5.9402]
[1740177140942,5.97793437,168.51,168.42,0.1226]
[1740177141140,0.04013437,168.51,168.46,5.9392]
[1740177141439,0.04013437,168.51,168.42,0.1226]
[1740177141839,0.04013437,168.51,168.46,5.9395]
[1740177142244,0.04013437,168.51,168.42,0.1226]
[1740177142643,5.97823437,168.51,168.45,5.9398]
[1740177143643,5.9381,168.5,168.45,5.9398]
[1740177144343,5.9381,168.5,168.42,0.1226]
[1740177144344,0.04013437,168.51,168.42,0.1226]
[1740177144644,5.9386,168.49,168.44,5.9402]
[1740177144942,0.04013437,168.51,168.42,0.1226]
[1740177145144,5.9389,168.48,168.43,5.9405]
[1740177145345,0.04280901,168.48,168.37,15.1663268]
[1740177145541,5.9392,168.47,168.37,15.1663268]
[1740177145736,0.0404634,168.44,168.42,5.9406]
[1740177146345,0.0404634,168.44,168.37,15.1663268]
[1740177146946,0.0404634,168.44,168.42,5.9407]
[1740177147547,0.0404634,168.44,168.43,5.9406]
[1740177147740,0.0404634,168.44,168.35,0.1265]
[1740177148846,5.9415,168.41,168.31,2.20895772]
[1740177149247,0.04152559,168.38,168.31,2.20895772]
[1740177150144,0.04152559,168.38,168.35,5.9432]
[1740177150344,0.04152559,168.38,168.31,2.20895772]
[1740177150848,0.04152559,168.38,168.37,5.9427]
[1740177151350,2.559e-05,168.38,168.37,5.9427]
[1740177177967,2.559e-05,168.38,168.36,0.04271638]
[1740177182370,2.559e-05,168.38,168.37,5.9421]
[1740177187580,2.559e-05,168.38,168.36,5.98511638]
[1740177189878,2.559e-05,168.38,168.36,0.04271638]
[1740177191080,2.559e-05,168.38,168.36,5.98511638]
[1740177191281,2.559e-05,168.38,168.36,0.04271638]
[1740177193579,2.559e-05,168.38,168.36,5.98511638]
[1740177194886,2.559e-05,168.38,168.36,0.04271638]
[1740177199183,5.94202559,168.38,168.36,0.04271638]
[1740177202289,2.559e-05,168.38,168.36,0.04271638]
[1740177203484,10.01199792,168.5,168.46,5.9389]
[1740177203983,10.01199792,168.5,168.42,9.76150468]
[1740177204186,161.77725926,168.51,168.42,9.76150468]
[1740177204389,161.77725926,168.51,168.38,0.77428091]
[1740177204390,161.77725926,168.51,168.45,9.76150468]
[1740177204579,3.99e-05,168.48,168.45,9.8063277]
[1740177205791,3.99e-05,168.48,168.47,15.70010468]
[1740177206189,171.53876394,168.62,168.47,9.76150468]
[1740177206389,171.53876394,168.62,168.52,9.76150468]
[1740177207292,171.53876394,168.62,168.5,9.76150468]
[1740177207593,0.03823412,168.59,168.55,0.04498112]
[1740177207793,0.03823412,168.59,168.57,5.9348]
[1740177208396,0.03823412,168.59,168.58,5.9347]
[1740177209098,3.412e-05,168.59,168.58,5.9347]
[1740177210494,3.412e-05,168.59,168.55,0.04498112]
[1740177212001,3.412e-05,168.59,168.58,5.9347]
[1740177212496,3.412e-05,168.59,168.55,0.04498112]
[1740177212698,3.412e-05,168.59,168.57,5.935]
[1740177212891,3.412e-05,168.59,168.55,0.04498112]
[1740177213395,15.21639452,168.59,168.55,0.04498112]
[1740177213895,5.9348,168.58,168.55,0.04498112]
[1740177214999,15.21639452,168.59,168.55,0.04498112]
[1740177215196,5.935,168.58,168.55,0.04498112]
[1740177215396,15.21639452,168.59,168.55,0.04498112]
[1740177215596,5.9354,168.57,168.55,0.04498112]
[1740177215900,5.9354,168.57,168.51,5.9369]
[1740177216296,15.2163604,168.59,168.51,5.9369]
[1740177216503,5.9355,168.56,168.51,5.9369]
[1740177217002,5.9358,168.55,168.5,5.9374]
[1740177217301,5.97672728,168.55,168.52,0.03766528]
[1740177220307,0.04092728,168.55,168.52,0.03766528]
[1740177222201,0.04092728,168.55,168.42,15.2163604]
[1740177222399,1.8373,168.55,168.42,15.2163604]
[1740177222602,5.937,168.52,168.39,15.3434604]
[1740177222803,15.2163604,168.53,168.39,15.3434604]
[1740177223195,15.2163604,168.5,168.38,0.77428091]
[1740177223401,15.2163604,168.47,168.44,0.03750698]
[1740177223700,3.6145,168.46,168.38,0.77428091]
[1740177223895,5.9403,168.43,168.38,0.77428091]
[1740177224907,0.03976894,168.42,168.38,0.77428091]
[1740177225495,0.03976894,168.42,168.4,5.9408]
[1740177226397,0.03976894,168.42,168.38,0.77428091]
[1740177226704,0.03976894,168.42,168.41,5.9407]
[1740177227603,6.894e-05,168.42,168.41,5.9407]
[1740177229508,6.894e-05,168.42,168.4,0.04259025]
[1740177232902,6.894e-05,168.42,168.27,8.4]
[1740177232903,6.894e-05,168.42,168.22,76.70106549]
[1740177233106,15.2163604,168.43,168.26,15.2163604]
[1740177233306,1.7909,168.42,168.26,15.2163604]
[1740177233507,5.9427,168.36,168.26,15.2163604]
[1740177234115,0.04435662,168.33,168.29,15.2163604]
[1740177234411,5.942,168.38,168.29,15.2163604]
[1740177234612,0.04072555,168.33,168.29,15.2163604]
[1740177235310,0.04072555,168.33,168.26,15.2163604]
[1740177235518,0.04072555,168.33,168.32,5.9439]
[1740177236316,0.04072555,168.33,168.21,12.1537]
[1740177236317,0.04072555,168.33,168.28,5.9452]
[1740177236506,8.36,168.39,168.28,5.9452]
[1740177236706,0.04035238,168.32,168.21,15.4747604]
[1740177236910,8.36,168.39,168.21,15.4747604]
[1740177237115,0.04009751,168.28,168.21,15.4747604]
[1740177237311,5.9442,168.32,168.25,5.9461]
[1740177237511,0.04109361,168.26,168.25,5.9461]
[1740177237709,8.36,168.39,168.25,5.9461]
[1740177238210,0.04561008,168.34,168.24,5.9467]
[1740177239317,5.9447,168.3,168.24,5.9467]
[1740177239620,3.5111,168.33,168.25,5.9462]
[1740177239918,0.04093092,168.29,168.25,5.9462]
[1740177242514,5.98593092,168.29,168.2,74.20304522]
[1740177242719,0.04093092,168.29,168.2,74.20304522]
[1740177243120,5.9464,168.25,168.2,80.15084522]
[1740177243417,1.8489,168.3,168.2,80.15084522]
[1740177243623,0.04559607,168.24,168.2,74.20304522]
[1740177244520,0.04559607,168.24,168.21,5.9477]
[1740177245824,0.04559607,168.24,168.15,127.81503634]
[1740177246628,5.9473,168.23,168.15,0.77503634]
[1740177247422,5.9474,168.22,168.15,0.77503634]
[1740177247828,0.04070161,168.2,168.15,0.77503634]
[1740177248723,5.98920161,168.2,168.15,0.77503634]
[1740177249125,0.04070161,168.2,168.15,0.77503634]
[1740177250124,0.04070161,168.2,168.16,5.9495]
[1740177250428,0.04070161,168.2,168.15,0.77503634]
[1740177250828,5.98910161,168.2,168.15,6.72463634]
[1740177251031,0.04070161,168.2,168.15,0.77503634]
[1740177251230,0.04070161,168.2,168.15,6.72463634]
[1740177252529,0.04070161,168.2,168.16,5.9495]
[1740177255130,0.04070161,168.2,168.15,0.77503634]
[1740177255331,0.04070161,168.2,168.17,5.949]
[1740177255531,5.98890161,168.2,168.15,0.77503634]
[1740177255928,0.04070161,168.2,168.15,0.77503634]
[1740177256333,0.04070161,168.2,168.18,5.9487]
[1740177256743,0.04070161,168.2,168.15,0.77503634]
[1740177256931,0.04070161,168.2,168.19,5.9485]
[1740177258944,0.04070161,168.2,168.18,5.9487]
[1740177259143,0.04070161,168.2,168.15,0.77503634]
[1740177260044,0.04070161,168.2,168.18,5.9485]
[1740177260544,0.04070161,168.2,168.15,0.77503634]
[1740177260839,0.04070161,168.2,168.19,5.9485]
[1740177261238,0.04070161,168.2,168.18,5.9487]
[1740177261438,0.04070161,168.2,168.15,0.77503634]
[1740177261846,0.04070161,168.2,168.18,5.9488]
[1740177267147,1.61e-06,168.2,168.19,5.9485]
[1740177267347,1.62,168.25,168.16,15.2163604]
[1740177267348,1.62,168.25,168.16,16.3639604]
[1740177267949,1.62,168.25,168.17,5.53004324]
[1740177268448,1.8388,168.37,168.19,15.26028805]
[1740177268654,3.6975,168.36,168.22,15.2163604]
[1740177269055,3.6975,168.36,168.23,0.8785]
[1740177269250,3.6975,168.36,168.23,6.40854324]
[1740177269551,0.04007269,168.31,168.28,0.04173435]
[1740177272254,15.2163604,168.3,168.28,0.04173435]
[1740177274155,21.1609604,168.3,168.28,0.04173435]
[1740177275056,15.2163604,168.3,168.28,0.04173435]
[1740177275752,21.1609604,168.3,168.28,0.04173435]
[1740177277663,15.2163604,168.3,168.28,0.04173435]
[1740177278859,21.1609604,168.3,168.28,0.04173435]
[1740177283269,15.2163604,168.3,168.28,0.04173435]
[1740177283474,5.9461,168.26,168.21,5.9475]
[1740177283668,15.2163604,168.28,168.21,5.9475]
[1740177284273,15.2163604,168.28,168.17,1.1057]
[1740177284472,0.03946263,168.24,168.21,0.04374493]
[1740177286075,15.2163604,168.22,168.21,0.04374493]
[1740177287769,21.1637604,168.22,168.21,0.04374493]
[1740177288375,0.03946263,168.24,168.21,0.04374493]
[1740177288376,5.98616263,168.24,168.21,0.04374493]
[1740177288871,0.03946263,168.24,168.21,0.04374493]
[1740177289478,0.03946263,168.24,168.23,5.947]
[1740177289771,0.03946263,168.24,168.21,0.04374493]
[1740177290174,0.03946263,168.24,168.21,5.99134493]
[1740177291178,0.03946263,168.24,168.21,0.04374493]
[1740177299481,5.98616263,168.24,168.21,0.04374493]
[1740177302580,0.03946263,168.24,168.21,0.04374493]
[1740177303286,5.9474,168.22,168.21,0.04374493]
[1740177304682,0.03946263,168.24,168.16,5.9493]
[1740177304683,5.9482,168.2,168.16,5.9492]
[1740177305785,5.99153783,168.2,168.16,5.9492]
[1740177306680,5.99153783,168.2,168.11,16.3173604]
[1740177306983,5.99153783,168.2,168.15,5.9497]
[1740177308180,5.9487,168.19,168.14,5.9501]
[1740177308581,0.04333783,168.2,168.14,5.9501]
[1740177309184,5.949,168.18,168.13,5.9504]
[1740177310285,5.949,168.18,168.11,16.0930604]
[1740177310585,5.949,168.18,168.09,0.77544044]
[1740177310784,0.04226344,168.16,168.09,0.77544044]
[1740177310986,0.04226344,168.16,168.13,5.9503]
[1740177313287,5.9499,168.15,168.11,5.9511]
[1740177313782,5.9499,168.15,168.09,0.77544044]
[1740177314179,0.04226344,168.16,168.1,5.9514]
[1740177314384,5.9499,168.15,168.1,5.9514]
[1740177316393,0.04226344,168.16,168.1,5.9514]
[1740177316594,5.9502,168.14,168.1,5.9514]
[1740177316793,0.04226344,168.16,168.1,5.9514]
[1740177317993,5.95,168.15,168.1,5.9514]
[1740177318195,15.34006371,168.16,168.09,0.77544044]
[1740177318395,15.34006371,168.16,168.07,5.9526]
[1740177318594,5.9513,168.12,168.07,5.9526]
[1740177318797,0.04499044,168.13,168.06,5.9529]
[1740177319099,5.9513,168.11,168.06,5.9529]
[1740177319498,15.34279071,168.13,168.04,74.27636565]
[1740177319797,3.5879,168.12,168.04,74.27636565]
[1740177319999,0.04486805,168.1,168.04,74.27636565]
[1740177320200,5.952,168.09,168.04,80.22996565]
[1740177320803,5.952,168.09,168.05,5.9534]
[1740177321203,0.04486805,168.1,168.05,5.9534]
[1740177322395,5.99656805,168.1,168.05,5.9534]
[1740177323699,5.99656805,168.1,168.04,80.23016565]
[1740177323700,5.952,168.09,168.04,80.23016565]
[1740177324103,5.952,168.09,168.04,80.22996565]
[1740177326102,5.9524,168.08,168.04,80.22996565]
[1740177327005,5.9524,168.08,168.04,74.27636565]
[1740177328804,15.34266832,168.1,168.04,74.27636565]
[1740177328805,21.25060027,168.07,168.04,74.27636565]
[1740177330006,15.29780027,168.07,167.96,127.26]
[1740177330410,0.03894617,168.03,168.0,5.9549]
[1740177331908,0.03894617,168.03,167.99,5.9554]
[1740177332307,5.99334617,168.03,167.99,5.9554]
[1740177332609,5.99334617,168.03,167.96,133.2165]
[1740177332610,0.03894617,168.03,167.96,133.2165]
[1740177333005,5.9548,168.02,167.96,133.2165]
[1740177333308,0.03894617,168.03,167.96,127.26]
[1740177334010,0.03894617,168.03,167.98,5.9559]
[1740177334210,5.99314617,168.03,167.96,127.26]
[1740177334409,0.03894617,168.03,167.96,127.26]
[1740177334609,15.33674644,168.03,167.92,0.176]
[1740177334809,5.9549,168.01,167.92,0.176]
[1740177335007,0.04015318,167.99,167.92,0.176]
[1740177335804,5.99585318,167.99,167.94,5.9573]
[1740177336406,0.04015318,167.99,167.9,0.9767]
[1740177336710,15.76684571,167.98,167.9,0.9767]
[1740177337106,15.76684571,167.98,167.93,5.9574]
[1740177337310,5.9563,167.97,167.9,0.9767]
[1740177337510,9.81094571,167.96,167.9,0.8793]
[1740177337712,0.03912116,167.95,167.91,5.9582]
[1740177338205,0.03912116,167.95,167.86,1.1568]
[1740177338805,0.03912116,167.95,167.91,5.9581]
[1740177340618,9.81094571,167.92,167.85,1.11681712]
[1740177340912,9.81094571,167.9,167.85,1.11681712]
[1740177341114,9.85589862,167.9,167.87,5.9595]
[1740177341914,9.85589862,167.9,167.85,1.11681712]
[1740177342217,9.85589862,167.9,167.86,5.96]
[1740177342710,0.04495291,167.9,167.86,5.96]
[1740177343611,0.04495291,167.9,167.85,7.07721712]
[1740177343810,0.04495291,167.9,167.85,1.11681712]
[1740177344016,0.04495291,167.9,167.8,1.1576]
[1740177344715,15.34495193,167.89,167.84,5.9608]
[1740177345108,0.04033484,167.88,167.84,5.9608]
[1740177346211,0.04033484,167.88,167.85,5.9604]
[1740177346409,15.34495193,167.89,167.85,5.9604]
[1740177346616,0.03910144,167.88,167.85,5.9604]
[1740177346818,0.03910144,167.88,167.77,11.9265]
[1740177347115,15.34495193,167.89,167.77,11.9265]
[1740177347313,6.558e-05,167.84,167.83,5.9612]
[1740177347518,15.34495193,167.92,167.77,15.34495193]
[1740177347714,15.34495193,167.92,167.78,11.9259]
[1740177347914,21.30305193,167.92,167.87,5.9596]
[1740177348215,15.34495193,167.92,167.78,11.9259]
[1740177348510,0.04235116,167.91,167.88,0.04098641]
[1740177348714,15.34495193,167.92,167.88,0.0374682]
[1740177348914,6.00006275,167.91,167.88,0.0374682]
[1740177349512,0.04156275,167.91,167.88,5.9967682]
[1740177349712,0.04156275,167.91,167.88,0.0374682]
[1740177351015,0.04156275,167.91,167.88,5.9968682]
[1740177351817,0.04156275,167.91,167.89,5.959]
[1740177352420,0.04156275,167.91,167.88,5.9966682]
[1740177354222,0.04156275,167.91,167.9,5.9587]
[1740177358321,1.8011,168.0,167.88,0.0374682]
[1740177358627,5.3094,168.0,167.85,15.34495193]
[1740177359022,5.9569,167.96,167.91,5.9581]
[1740177359218,15.34495193,167.99,167.8,15.34495193]
[1740177359425,0.04532897,167.95,167.92,0.03978909]
[1740177359621,15.34495193,167.99,167.8,15.34495193]
[1740177359822,0.04492946,167.95,167.92,0.04319462]
[1740177360022,15.34495193,167.99,167.8,15.34495193]
[1740177360223,0.04289504,167.95,167.92,0.0406052]
[1740177360418,15.34495193,167.99,167.81,19.93171791]
[1740177360627,0.04468573,167.95,167.92,0.04471861]
[1740177360824,0.04468573,167.95,167.91,5.9583]
[1740177361022,0.04468573,167.95,167.92,0.04086854]
[1740177362241,5.9575,167.94,167.92,0.04086854]
[1740177363831,5.9577,167.93,167.92,0.04086854]
[1740177364623,5.9577,167.93,167.87,5.9596]
[1740177364624,9.8144211,167.94,167.82,0.8393]
[1740177364826,9.8144211,167.91,167.82,0.8393]
[1740177365628,0.03863815,167.88,167.85,0.03846063]
[1740177366226,0.03863815,167.88,167.85,5.99876063]
[1740177366426,0.03863815,167.88,167.85,0.03846063]
[1740177366930,0.03863815,167.88,167.86,5.9601]
[1740177367128,0.03863815,167.88,167.85,0.03846063]
[1740177367327,0.03863815,167.88,167.85,5.99866063]
[1740177368434,0.03863815,167.88,167.85,0.03846063]
[1740177376735,5.99843815,167.88,167.85,0.03846063]
[1740177381041,5.9608,167.85,167.77,8.00791791]
[1740177381841,5.9608,167.85,167.79,5.9624]
[1740177382044,21.30616376,167.86,167.75,33.08723335]
[1740177382240,0.03774551,167.84,167.75,33.08723335]
[1740177383044,0.03774551,167.84,167.78,5.9626]
[1740177383246,0.03774551,167.84,167.76,11.9273]
[1740177383844,0.03774551,167.84,167.83,5.9612]
[1740177387042,0.03774551,167.84,167.82,5.9614]
[1740177387242,0.03774551,167.84,167.76,11.9273]
[1740177387945,0.03774551,167.84,167.82,5.9614]
[1740177389444,0.03774551,167.84,167.77,9.82210325]
[1740177389942,0.03774551,167.84,167.82,5.9614]
[1740177390536,0.03774551,167.84,167.77,9.82210325]
[1740177392244,0.03774551,167.84,167.82,5.9613]
[1740177393043,0.03774551,167.84,167.77,9.82210325]
[1740177393244,0.03774551,167.84,167.83,5.9612]
[1740177398152,0.03774551,167.84,167.77,9.82210325]
[1740177398553,0.03774551,167.84,167.8,5.9621]
[1740177398951,0.03774551,167.84,167.78,74.4150887]
[1740177399155,0.03774551,167.84,167.82,5.9614]
[1740177401150,0.03774551,167.84,167.75,8.78488379]
[1740177401346,0.03774551,167.84,167.81,5.9618]
[1740177402651,0.03774551,167.84,167.78,74.4150887]
[1740177402856,0.03774551,167.84,167.79,5.9624]
[1740177405959,5.99874551,167.84,167.79,5.9624]
[1740177406158,0.03774551,167.84,167.79,5.9624]
[1740177410359,0.03774551,167.84,167.78,74.4150887]
[1740177410559,0.03774551,167.84,167.8,5.9622]
[1740177415562,0.03774551,167.84,167.79,5.9624]
[1740177415762,0.03774551,167.84,167.78,74.4150887]
[1740177416155,0.03774551,167.84,167.8,5.9621]
[1740177417063,0.03774551,167.84,167.83,5.9612]
[1740177418160,14.5028,167.92,167.79,9.82210325]
[1740177418565,14.5028,167.92,167.87,5.9595]
[1740177418863,1.8128,167.92,167.87,5.9595]
[1740177419266,0.03888873,167.91,167.88,0.04380455]
[1740177421166,9.82210325,167.9,167.88,0.04380455]
[1740177423269,9.82210325,167.86,167.81,38.27206747]
[1740177423465,9.82210325,167.86,167.81,32.31026747]
[1740177424163,0.04242838,167.85,167.81,32.31026747]
[1740177426671,0.04242838,167.85,167.8,5.9622]
[1740177429769,0.04242838,167.85,167.74,8.81351791]
[1740177429969,6.00302838,167.85,167.79,5.9624]
[1740177430668,0.04242838,167.85,167.8,5.9623]
[1740177433167,6.00292838,167.85,167.8,5.9623]
[1740177437677,6.00292838,167.85,167.74,83.2394725]
[1740177437678,0.04242838,167.85,167.74,83.2394725]
[1740177438181,5.9609,167.84,167.78,5.9628]
[1740177438377,0.04242838,167.85,167.74,83.2394725]
[1740177438679,9.82210325,167.86,167.74,83.2394725]
[1740177438878,9.82210325,167.86,167.78,5.9628]
[1740177438879,0.04170664,167.82,167.78,5.9628]
[1740177439679,0.04170664,167.82,167.74,83.2394725]
[1740177439881,0.04170664,167.82,167.79,5.9626]
[1740177443282,0.04170664,167.82,167.74,75.23155459]
[1740177444281,0.04170664,167.82,167.78,5.9627]
[1740177446377,0.04170664,167.82,167.74,74.42595459]
[1740177446583,5.9625,167.8,167.74,74.42595459]
[1740177446780,9.82210325,167.78,167.74,74.42595459]
[1740177447181,9.86252543,167.78,167.74,74.42595459]
[1740177447697,15.82562543,167.78,167.74,74.42595459]
[1740177449186,6.00352218,167.78,167.74,74.42595459]
[1740177452486,0.04042218,167.78,167.74,74.42595459]
[1740177453988,9.86252543,167.78,167.74,74.42595459]
[1740177454385,5.9634,167.77,167.74,74.42595459]
[1740177454784,9.86252543,167.78,167.74,74.42595459]
[1740177455287,9.82210325,167.76,167.74,74.42595459]
[1740177456689,9.82210325,167.76,167.67,8.00791791]
[1740177456884,9.82210325,167.74,167.67,8.00791791]
[1740177457084,0.03791639,167.73,167.67,8.00791791]
[1740177457789,0.03791639,167.73,167.69,5.9659]
[1740177457984,9.82210325,167.72,167.67,8.00791791]
[1740177458185,9.82210325,167.7,167.68,5.9666]
[1740177458386,9.82210325,167.7,167.67,8.00791791]
[1740177458789,9.82210325,167.7,167.68,5.9663]
[1740177458989,9.82210325,167.7,167.65,8.00791791]
[1740177459390,0.03850269,167.69,167.68,5.9663]
[1740177462288,2.69e-06,167.69,167.68,5.9663]
[1740177463392,2.69e-06,167.69,167.67,9.82210325]
[1740177463393,12.29,167.78,167.67,9.86157303]
[1740177463592,12.29,167.78,167.72,9.82210325]
[1740177463994,12.29,167.78,167.76,5.9635]
[1740177465094,12.29,167.78,167.75,0.03947247]
[1740177465893,0.04255638,167.79,167.75,0.03947247]
[1740177466996,0.04255638,167.79,167.78,5.963]
[1740177467394,0.04255638,167.79,167.75,0.03947247]
[1740177467793,0.04255638,167.79,167.66,24.30234956]
[1740177467995,3.5491,167.79,167.68,9.82210325]
[1740177468295,3.5491,167.79,167.71,5.9652]
[1740177468699,3.5491,167.79,167.71,5.9654]
[1740177469001,0.03768819,167.77,167.71,5.9654]
[1740177469502,0.03768819,167.77,167.7,5.9658]
[1740177472499,0.03768819,167.77,167.67,9.82210325]
[1740177472704,0.03768819,167.77,167.69,5.9662]
[1740177473500,0.03768819,167.77,167.7,5.9658]
[1740177474207,9.82210325,167.76,167.7,5.9658]
[1740177474906,9.82210325,167.76,167.65,8.00791791]
[1740177475209,9.82210325,167.76,167.69,5.9661]
[1740177475507,0.03917213,167.72,167.69,5.9661]
[1740177476406,0.03917213,167.72,167.65,32.31026747]
[1740177477607,9.82210325,167.7,167.64,5.9679]
[1740177478207,15.78820325,167.7,167.63,13.97611791]
[1740177478607,0.03937464,167.68,167.63,13.97611791]
[1740177480112,0.03937464,167.68,167.64,5.968]
[1740177480307,0.03937464,167.68,167.63,8.00791791]
[1740177480502,0.03937464,167.68,167.6,127.5]
[1740177481105,0.03937464,167.68,167.63,5.968]
[1740177484111,0.03937464,167.68,167.64,5.9679]
[1740177488021,0.03937464,167.68,167.62,9.82210325]
[1740177488221,0.03937464,167.68,167.63,5.9683]
[1740177489326,0.03937464,167.68,167.61,9.82210325]
[1740177490319,0.03937464,167.68,167.64,5.9678]
[1740177493122,0.03937464,167.68,167.63,5.9682]
[1740177501334,6.00617464,167.68,167.6,127.5]
[1740177501730,6.00617464,167.68,167.59,0.8088]
[1740177502033,0.03937464,167.68,167.59,0.8088]
[1740177502234,0.03937464,167.68,167.62,5.9684]
[1740177504035,0.03937464,167.68,167.59,0.8088]
[1740177504235,0.03937464,167.68,167.63,5.9683]
[1740177504833,0.03937464,167.68,167.62,5.9687]
[1740177504834,6.00607464,167.68,167.62,5.9687]
[1740177510029,9.82210325,167.65,167.57,8.00791791]
[1740177510232,9.82210325,167.62,167.57,8.00791791]
[1740177510734,9.82210325,167.62,167.6,5.9693]
[1740177510930,9.82210325,167.61,167.57,8.00791791]
[1740177511338,9.82210325,167.61,167.57,32.31026747]
[1740177511741,9.82210325,167.61,167.6,5.9694]
[1740177512934,0.04342111,167.63,167.62,5.9687]
[1740177513233,0.04342111,167.63,167.57,32.31026747]
[1740177513438,0.04342111,167.63,167.55,9.12712904]
[1740177513639,0.04342111,167.63,167.61,5.9688]
[1740177513835,0.04342111,167.63,167.55,9.12712904]
[1740177514240,0.04342111,167.63,167.62,5.9687]
[1740177516338,9.82210325,167.71,167.6,9.82210325]
[1740177516339,14.0071,167.72,167.6,9.82210325]
[1740177516538,19.9723,167.72,167.66,5.9672]
[1740177516940,14.0071,167.72,167.67,5.9667]
[1740177517141,14.0071,167.72,167.63,9.82210325]
[1740177517142,3.6651,167.72,167.63,9.82210325]
[1740177517542,0.04282262,167.69,167.68,5.9663]
[1740177519245,9.82210325,167.81,167.66,9.86494114]
[1740177519445,3.5487,167.79,167.66,9.82210325]
[1740177519647,3.5487,167.79,167.63,8.00791791]
[1740177519648,3.5487,167.79,167.69,9.82210325]
[1740177520346,0.04076134,167.76,167.72,0.04115305]
[1740177521939,5.9641,167.75,167.72,0.04115305]
[1740177522746,17.9,167.73,167.63,24.30234956]
[1740177522948,9.82210325,167.68,167.63,24.30234956]
[1740177523146,202.1,167.71,167.63,24.30234956]
[1740177523347,5.9664,167.69,167.63,24.30234956]
[1740177523748,8.1,167.71,167.63,24.30234956]
[1740177523951,0.04414966,167.68,167.64,0.04414888]
[1740177530352,6.01074966,167.68,167.64,0.04414888]
[1740177531147,5.9673,167.66,167.64,0.04414888]
[1740177533053,5.967,167.67,167.64,0.04414888]
[1740177535759,5.9673,167.66,167.64,0.04414888]
[1740177543256,0.04414966,167.68,167.64,0.04414888]
[1740177543660,5.9673,167.66,167.64,0.04414888]
[1740177545062,6.01084966,167.68,167.64,0.04414888]
[1740177545265,0.04414966,167.68,167.64,0.04414888]
[1740177546267,0.04414966,167.68,167.65,5.9675]
[1740177547268,0.04414966,167.68,167.64,0.04414888]
[1740177547469,0.04414966,167.68,167.64,6.01204888]
[1740177551572,0.04414966,167.68,167.64,0.04414888]
[1740177552471,0.04414966,167.68,167.64,6.01204888]
[1740177552663,0.04414966,167.68,167.64,0.04414888]
[1740177554567,9.88259016,167.68,167.64,0.04414888]
[1740177554769,15.84919016,167.68,167.64,0.04414888]
[1740177555170,9.88259016,167.68,167.64,0.04414888]
[1740177556878,5.9669,167.67,167.64,0.04414888]
[1740177557081,9.88259016,167.68,167.64,0.04414888]
[1740177557879,9.8384405,167.65,167.64,0.04414888]
[1740177558676,15.8060405,167.65,167.64,0.04414888]
[1740177559885,9.8384405,167.65,167.64,0.04414888]